bitfinex-derivatives/quotes_ETHF0:USTF0_20260113
["timestamp","ask_amount","ask_price","bid_price","bid_amount"]
[1768319545000,0.99195191,3156.7,3155.1,0.13427967]
[1768319545193,0.99195191,3156.6,3155.1,0.13427967]
[1768319545399,0.99195191,3156.5,3155.1,0.13427967]
[1768319545594,0.15851,3156.9,3155.1,0.13427967]
[1768319545799,0.99212885,3156.8,3155.1,0.13427967]
[1768319545999,0.99212885,3156.7,3155.1,0.13427967]
[1768319546192,0.99212885,3156.6,3155.1,0.13427967]
[1768319546393,0.99212885,3156.5,3155.1,0.13427967]
[1768319546702,0.15851,3156.9,3155.1,0.13427967]
[1768319546894,0.9923032,3156.8,3155.1,0.13427967]
[1768319547093,0.9923032,3156.7,3155.1,0.13427967]
[1768319547299,0.9923032,3156.6,3155.1,0.13427967]
[1768319547497,0.9923032,3156.5,3155.1,0.13427967]
[1768319547695,0.9923032,3156.4,3155.1,0.13427967]
[1768319547897,1.77562303,3157.3,3155.4,0.13427967]
[1768319548097,0.99250738,3157.2,3155.4,0.13427967]
[1768319548300,1.77562303,3157.3,3155.6,0.13427967]
[1768319549196,1.77562303,3157.4,3155.6,0.13427967]
[1768319549591,1.77562303,3157.4,3155.7,0.13427967]
[1768319549998,1.77562303,3156.9,3155.6,0.15857]
[1768319550202,1.77562303,3156.9,3155.6,0.29284967]
[1768319551603,1.93413303,3156.9,3155.0,0.00296991]
[1768319551806,1.15250838,3156.8,3155.0,0.13724958]
[1768319552100,0.99399838,3156.7,3155.0,0.13724958]
[1768319552697,1.15251838,3156.7,3155.0,0.13724958]
[1768319552906,1.77562303,3156.4,3155.0,0.13724958]
[1768319553201,0.99399838,3156.3,3155.0,0.13724958]
[1768319554400,0.99399838,3156.3,3154.5,0.13427967]
[1768319555110,0.99399838,3156.3,3154.1,0.10136963]
[1768319555410,0.99399838,3156.3,3154.1,0.10475165]
[1768319556101,0.99399838,3156.3,3154.2,0.15864]
[1768319556303,0.99399838,3156.3,3154.3,0.15864]
[1768319556499,0.99399838,3156.3,3154.6,0.15862]
[1768319556712,0.99399838,3156.2,3154.6,0.15862]
[1768319557008,0.99399838,3156.1,3154.7,0.13972167]
[1768319557200,4.774,3156.8,3154.7,0.13972167]
[1768319557401,0.99384117,3156.7,3154.8,0.13972167]
[1768319557612,0.99384117,3156.6,3155.1,0.13972167]
[1768319557800,0.99384117,3156.5,3155.1,0.13972167]
[1768319558006,3.171,3157.2,3155.1,0.13972167]
[1768319558206,0.99423343,3157.1,3155.1,0.13972167]
[1768319558399,0.99423343,3157.0,3155.1,0.13972167]
[1768319558600,0.99423343,3156.9,3155.1,0.13972167]
[1768319558811,0.99423343,3156.8,3155.1,0.13972167]
[1768319559012,0.99423343,3156.7,3155.1,0.13972167]
[1768319559311,0.99423343,3156.6,3155.1,0.13972167]
[1768319559513,0.99423343,3156.5,3155.1,0.13972167]
[1768319559810,0.99423343,3156.4,3155.1,0.13972167]
[1768319560011,0.99500606,3156.3,3155.1,0.13972167]
[1768319560208,1.77562303,3156.4,3154.6,0.13972167]
[1768319560410,0.99504407,3156.3,3154.6,0.13972167]
[1768319560610,0.99504407,3156.2,3154.6,0.13972167]
[1768319560909,0.99504407,3156.1,3154.6,0.13972167]
[1768319561213,0.99504407,3156.0,3154.6,0.13972167]
[1768319561411,0.99504407,3155.9,3154.6,0.13972167]
[1768319561706,0.00281477,3156.0,3154.6,0.13972167]
[1768319562011,0.99495027,3155.9,3154.6,0.13972167]
[1768319562212,0.00281477,3156.0,3154.6,0.13972167]
[1768319562409,0.00281477,3156.0,3155.0,0.29832167]
[1768319562602,0.00281477,3156.0,3155.0,0.13972167]
[1768319562800,0.00281477,3156.0,3155.0,6.13972167]
[1768319563003,0.00281477,3156.0,3155.0,0.13972167]
[1768319563403,0.00281477,3156.0,3155.1,0.15859]
[1768319563812,0.00281477,3156.0,3155.1,0.29831167]
[1768319564510,0.00281477,3156.0,3155.2,0.13972167]
[1768319566209,0.00281477,3156.0,3154.6,0.13972167]
[1768319567310,0.00281477,3156.0,3154.5,0.15862]
[1768319568607,0.00281477,3156.0,3154.5,0.29834167]
[1768319568814,0.00281477,3156.0,3154.6,0.13972167]
[1768319574418,0.00281477,3156.0,3154.8,0.13972167]
[1768319575316,0.1585,3157.1,3155.1,0.13972167]
[1768319575513,1.56842201,3157.0,3155.1,0.13972167]
[1768319576113,1.56842201,3157.0,3155.3,0.13972167]
[1768319576312,1.57239491,3157.0,3155.4,0.13972167]
[1768319577220,1.57239491,3157.0,3155.5,0.13972167]
[1768319577613,1.57239491,3157.0,3155.6,0.13972167]
[1768319577815,0.0039729,3157.0,3155.6,0.13972167]
[1768319579116,0.0039729,3157.0,3155.6,0.29829167]
[1768319579317,0.0039729,3157.0,3155.7,0.13972167]
[1768319580619,1.57239491,3157.0,3155.7,0.13972167]
[1768319580814,1.56842201,3156.6,3155.2,0.13972167]
[1768319581122,1.56842201,3156.6,3155.4,0.13972167]
[1768319582117,1.57239491,3157.0,3155.6,0.13972167]
[1768319582318,0.0039729,3157.0,3155.6,0.13972167]
[1768319582621,1.57239491,3157.0,3155.6,0.13972167]
[1768319584526,0.0039729,3157.0,3155.8,0.13972167]
[1768319584821,0.0039729,3157.0,3156.0,0.13972167]
[1768319585618,0.0039729,3157.0,3155.5,0.29235488]
[1768319585826,0.0039729,3157.0,3155.6,0.13378488]
[1768319586026,1.56842201,3156.8,3155.6,0.13378488]
[1768319588326,1.56842201,3156.8,3155.1,0.13378488]
[1768319588630,1.56842201,3156.8,3155.2,0.13378488]
[1768319589326,1.56842201,3156.0,3155.2,0.13378488]
[1768319589533,1.56842201,3156.4,3155.2,0.13378488]
[1768319589733,1.56842201,3156.8,3155.3,0.13378488]
[1768319590416,1.56842201,3156.4,3155.3,0.13378488]
[1768319591415,1.56842201,3156.4,3154.8,0.13378488]
[1768319592024,1.56842201,3156.4,3154.9,0.13378488]
[1768319592528,1.56842201,3156.4,3154.9,0.29238488]
[1768319592717,1.56842201,3156.0,3154.4,0.13378488]
[1768319593126,1.56842201,3156.0,3154.5,0.13378488]
[1768319595019,0.0039729,3157.0,3154.5,0.13378488]
[1768319595020,3.93863425,3157.5,3155.9,0.15855]
[1768319595225,1.72686201,3158.3,3156.2,0.13378488]
[1768319595727,1.56842201,3158.3,3156.4,0.14363118]
[1768319596227,1.56842201,3158.1,3156.4,0.14599647]
[1768319596618,1.56842201,3158.1,3156.4,0.30452647]
[1768319596825,0.00222596,3158.3,3156.5,0.30215118]
[1768319597024,0.00222596,3158.3,3156.6,0.14363118]
[1768319597228,1.56842201,3158.1,3156.6,0.14363118]
[1768319601937,1.56842201,3158.1,3156.7,0.14363118]
[1768319602233,0.00222596,3158.3,3156.8,0.14363118]
[1768319602437,0.00222596,3158.3,3157.3,0.14363118]
[1768319602933,2.11020201,3159.4,3157.3,0.14363118]
[1768319603128,3.18071189,3159.4,3157.3,0.14363118]
[1768319603329,1.56842201,3159.0,3157.3,0.14363118]
[1768319603940,1.57082517,3159.0,3157.3,0.14363118]
[1768319604235,1.56842201,3157.5,3156.4,0.00236529]
[1768319604536,1.56842201,3157.3,3155.9,0.14363118]
[1768319604937,1.56842201,3156.9,3155.0,0.14363118]
[1768319605339,1.56842201,3156.9,3155.1,0.14363118]
[1768319606339,0.14491304,3159.0,3157.0,0.14363118]
[1768319606644,0.14491304,3159.0,3157.1,0.14363118]
[1768319607142,0.14491304,3159.0,3157.2,0.14363118]
[1768319607846,1.56842201,3158.8,3157.2,0.14363118]
[1768319613138,1.56842201,3158.9,3157.2,0.14363118]
[1768319615943,1.56842201,3158.9,3157.3,0.14249468]
[1768319616146,1.56842201,3158.9,3157.3,0.14635323]
[1768319617239,0.00240316,3159.0,3157.4,0.14249468]
[1768319617443,1.56842201,3158.9,3157.4,0.14249468]
[1768319618545,0.00240316,3159.0,3157.5,0.14249468]
[1768319618754,0.00240316,3159.0,3157.6,0.14249468]
[1768319619152,1.57082517,3159.0,3157.6,0.14249468]
[1768319620554,1.57082517,3159.0,3157.3,0.00385855]
[1768319620944,1.57082517,3159.0,3157.3,0.14635323]
[1768319622053,1.57082517,3159.0,3157.3,0.14635323]
[1768319623149,1.56842201,3158.6,3157.3,0.14635323]
[1768319625644,1.72922517,3159.0,3157.3,0.14635323]
[1768319625844,0.00240316,3159.0,3157.4,0.30097468]
[1768319626054,0.00240316,3159.0,3157.5,0.14249468]
[1768319626456,1.57082517,3159.0,3157.3,0.00385855]
[1768319626753,1.56842201,3158.6,3157.3,0.00385855]
[1768319627952,1.56842201,3158.7,3157.3,0.00385855]
[1768319630551,0.3834,3159.4,3158.5,0.14249468]
[1768319630852,10.385,3160.5,3158.9,0.14249468]
[1768319631052,0.1583,3161.0,3158.9,0.14249468]
[1768319631555,0.16144855,3161.0,3158.9,0.14249468]
[1768319631754,1.56842201,3160.9,3158.9,0.14249468]
[1768319632556,0.16144855,3161.0,3158.9,0.14249468]
[1768319632857,1.56842201,3160.9,3158.9,0.14249468]
[1768319634343,1.56842201,3160.1,3158.3,0.14249468]
[1768319637460,1.93191547,3160.5,3158.3,0.14249468]
[1768319637752,1.93841587,3160.5,3158.3,0.14249468]
[1768319637957,0.1648304,3160.4,3158.3,0.14249468]
[1768319640763,0.15833,3160.4,3158.5,0.14249468]
[1768319640962,3.17733455,3161.0,3158.8,0.14249468]
[1768319640963,3.17114855,3161.0,3158.8,0.14249468]
[1768319642358,1.77358547,3160.7,3158.8,0.14249468]
[1768319642555,1.93190547,3160.7,3158.8,0.14249468]
[1768319644063,0.15832,3160.7,3158.8,0.14249468]
[1768319644267,0.00314855,3161.0,3159.0,0.14249468]
[1768319645560,0.00314855,3161.0,3159.1,0.14687795]
[1768319647164,0.00314855,3161.0,3159.3,0.14687795]
[1768319648769,0.00314855,3161.0,3159.3,0.30525795]
[1768319648963,0.00314855,3161.0,3159.4,0.14687795]
[1768319649773,16.86,3162.0,3159.4,0.14687795]
[1768319650072,1.77358547,3162.9,3160.8,0.14687795]
[1768319650073,0.15821,3162.9,3160.8,0.14687795]
[1768319650363,0.14688746,3163.0,3161.1,0.30516795]
[1768319650761,0.14688746,3163.0,3161.2,0.14687795]
[1768319650968,0.15072366,3163.0,3161.2,0.14687795]
[1768319652972,0.0038362,3163.0,3161.2,0.14687795]
[1768319654472,0.0038362,3163.0,3162.0,0.14687795]
[1768319654976,0.0038362,3163.0,3162.1,0.14687795]
[1768319657865,0.25409879,3164.2,3162.2,0.14214775]
[1768319658070,0.15814,3164.3,3162.2,0.14214775]
[1768319658867,0.15811,3164.9,3162.9,0.14214775]
[1768319659072,0.26238038,3165.1,3163.3,0.14214775]
[1768319659073,0.00369628,3164.3,3163.3,0.14214775]
[1768319660383,3.874,3165.4,3163.3,0.14214775]
[1768319660777,1.17342326,3165.8,3163.3,0.14214775]
[1768319660973,1.17342326,3165.8,3163.5,0.14214775]
[1768319661177,1.17342326,3165.8,3163.5,0.30031775]
[1768319661382,1.17650986,3165.8,3163.6,0.14214775]
[1768319662585,1.17650986,3165.8,3164.2,0.14214775]
[1768319663383,1.17650986,3165.8,3164.3,0.14214775]
[1768319663579,1.17650986,3165.8,3164.4,0.14214775]
[1768319664278,1.17650986,3165.8,3164.5,0.14214775]
[1768319665093,0.74918626,3165.8,3164.6,6.0]
[1768319665675,0.74918626,3165.8,3164.5,0.15812]
[1768319665875,0.89471699,3165.8,3163.7,0.15816]
[1768319666080,0.14553073,3165.7,3163.9,0.15815]
[1768319666280,0.14553073,3165.7,3163.5,0.00318667]
[1768319667791,0.14553073,3165.7,3163.7,0.15816]
[1768319668183,0.74918626,3165.8,3163.7,0.15816]
[1768319668184,0.14553073,3165.4,3163.7,0.15816]
[1768319668584,0.14553073,3165.4,3163.8,0.15816]
[1768319669882,0.14553073,3165.4,3163.9,0.15815]
[1768319670083,0.14553073,3165.4,3164.2,0.15814]
[1768319670484,0.14553073,3165.4,3163.5,0.00318667]
[1768319671291,0.14553073,3165.4,3164.4,0.15813]
[1768319672988,0.14553073,3165.4,3163.5,0.00318667]
[1768319673387,0.14553073,3165.4,3163.9,0.15815]
[1768319676092,0.13374355,3165.3,3163.9,0.15815]
[1768319676296,0.13374355,3165.3,3163.5,0.00318667]
[1768319676595,0.13374355,3164.8,3163.5,0.00318667]
[1768319676792,0.13374355,3164.8,3163.7,0.15816]
[1768319677697,0.13374355,3164.8,3163.5,0.00318667]
[1768319678092,0.13374355,3164.8,3164.0,0.15815]
[1768319680398,0.36652626,3165.8,3164.1,0.649]
[1768319680602,0.03619297,3165.8,3164.2,3.163]
[1768319680803,2.97e-06,3165.8,3165.7,0.15806]
[1768319681302,2.97e-06,3165.8,3165.7,6.15806]
[1768319685400,0.13374355,3167.5,3166.5,0.15802]
[1768319685599,0.13374355,3167.5,3166.8,0.15801]
[1768319686509,0.13627745,3167.5,3166.8,0.16172158]
[1768319686705,0.13627745,3167.5,3167.0,0.158]
[1768319687008,0.0025339,3167.5,3167.0,0.158]
[1768319687712,0.0025339,3167.5,3167.1,0.15799]
[1768319689312,0.0025339,3167.5,3167.4,0.15798]
[1768319689905,0.13374355,3168.2,3166.8,0.00371158]
[1768319690113,0.13374355,3168.2,3167.4,0.15798]
[1768319690309,0.13374355,3168.2,3167.5,0.15797]
[1768319690911,0.1364801,3168.2,3167.5,0.15797]
[1768319694414,0.1364801,3168.2,3167.0,0.158]
[1768319697006,0.1364801,3168.2,3167.2,0.15799]
[1768319697410,0.1364801,3168.2,3167.3,0.15798]
[1768319697609,0.00273655,3168.2,3166.8,0.00371158]
[1768319698015,0.00273655,3168.2,3167.4,0.15798]
[1768319698313,0.1364801,3168.2,3167.4,0.15798]
[1768319698718,0.1364801,3168.2,3167.5,0.15797]
[1768319700714,0.1364801,3168.2,3166.8,0.00371158]
[1768319701221,0.1364801,3168.2,3167.1,0.15799]
[1768319701521,0.1364801,3168.2,3167.3,0.15798]
[1768319701714,0.13374355,3168.9,3166.8,6.00371158]
[1768319701917,0.13374355,3168.9,3168.4,0.15793]
[1768319702420,0.13374355,3168.9,3168.5,0.15792]
[1768319702919,0.13697839,3168.9,3168.5,0.15792]
[1768319703521,0.13697839,3168.9,3166.8,0.00371158]
[1768319703717,0.13697839,3168.9,3167.9,0.15795]
[1768319703924,0.13374355,3168.8,3167.9,0.15795]
[1768319704820,0.13374355,3168.8,3167.2,1.55637945]
[1768319705220,0.13374355,3168.8,3167.6,0.15797]
[1768319705422,0.00323484,3168.9,3167.6,0.15797]
[1768319705423,0.14675707,3168.6,3167.6,0.15797]
[1768319705620,0.14675707,3168.6,3166.8,0.00371158]
[1768319706031,0.14675707,3168.6,3167.4,0.15798]
[1768319706619,0.14675707,3170.5,3168.1,1.55637945]
[1768319706916,0.14675707,3170.5,3168.9,0.1579]
[1768319707117,0.14675707,3170.1,3168.9,0.1579]
[1768319707418,0.14675707,3170.1,3169.0,0.1579]
[1768319707624,0.15034964,3170.1,3169.1,0.15789]
[1768319707824,0.15034964,3170.1,3169.1,0.16184654]
[1768319708324,0.15034964,3170.1,3169.3,0.15788]
[1768319708913,0.15034964,3170.1,3169.4,0.15788]
[1768319709724,0.15034964,3170.1,3167.9,0.883]
[1768319709725,1.70313652,3169.5,3167.2,0.13437002]
[1768319710022,1.70313652,3169.4,3167.2,0.13437002]
[1768319710622,1.70313652,3169.4,3168.4,0.15793]
[1768319710826,1.70313652,3169.4,3168.4,0.16014849]
[1768319711015,0.14675707,3169.3,3168.4,0.16014849]
[1768319711624,0.14675707,3169.2,3166.8,1.69074947]
[1768319711832,0.14675707,3168.9,3167.8,0.15796]
[1768319712731,0.14675707,3168.9,3167.8,0.16097906]
[1768319714329,1.55637945,3168.6,3167.8,0.16097906]
[1768319714518,0.14675707,3168.5,3167.5,0.15797]
[1768319714722,0.14675707,3168.5,3167.6,0.15797]
[1768319715328,1.55637945,3168.2,3166.6,0.13437002]
[1768319715523,4.732,3169.3,3167.4,0.15798]
[1768319715524,1.55637945,3168.7,3167.4,0.15798]
[1768319715728,1.69403272,3168.8,3167.6,0.15797]
[1768319715930,0.13765327,3168.7,3167.6,0.15797]
[1768319716233,1.55637945,3168.4,3167.6,0.15797]
[1768319717625,1.55637945,3168.4,3166.6,0.14570127]
[1768319717830,1.55637945,3168.4,3167.3,0.15798]
[1768319721033,1.55637945,3168.0,3166.6,0.14570127]
[1768319721233,7.55003184,3169.3,3166.6,0.14570127]
[1768319721234,1.55637945,3168.3,3166.6,0.00402085]
[1768319721423,1.55637945,3168.3,3166.6,0.14570127]
[1768319722746,1.55637945,3169.0,3167.1,0.14168042]
[1768319722931,1.55637945,3168.6,3167.6,0.15797]
[1768319725044,1.55637945,3168.6,3167.1,0.14168042]
[1768319726133,1.15788062,3171.0,3169.3,0.15788]
[1768319726332,0.00359257,3170.1,3169.3,0.16152775]
[1768319726532,0.00359257,3170.1,3169.5,0.15787]
[1768319727746,0.00359257,3170.1,3169.3,0.00364775]
[1768319727747,0.13765327,3170.9,3169.3,0.00364775]
[1768319727955,1.15788062,3171.0,3169.8,0.15786]
[1768319728548,1.55637945,3170.8,3169.8,0.15786]
[1768319728741,0.00343478,3170.8,3169.9,0.15785]
[1768319729246,0.00343478,3170.8,3170.2,0.15784]
[1768319729443,0.39641385,3172.5,3169.4,0.14168042]
[1768319729650,1.55637945,3171.8,3169.5,0.14168042]
[1768319729839,1.69403272,3171.8,3169.5,0.14168042]
[1768319730141,0.13765327,3171.8,3170.3,0.15783]
[1768319730347,1.55637945,3171.6,3170.5,0.15782]
[1768319730647,0.14167256,3171.6,3170.6,0.15782]
[1768319731341,9.29e-06,3171.6,3171.5,0.15778]
[1768319731541,0.13765327,3172.8,3170.7,0.14029698]
[1768319731734,0.13765327,3172.8,3171.7,0.15776]
[1768319732043,1.55637945,3173.0,3171.9,0.15775]
[1768319732343,0.13765327,3175.0,3172.8,0.14029698]
[1768319732543,0.13765327,3176.2,3173.9,0.14029698]
[1768319732739,0.13765327,3176.2,3174.0,3.29829698]
[1768319732938,3.158,3177.6,3174.2,0.14029698]
[1768319732939,0.13765327,3176.8,3174.2,0.14029698]
[1768319733140,0.13765327,3176.8,3174.9,0.1576]
[1768319733341,0.13765327,3176.8,3174.4,0.13859428]
[1768319733540,0.13765327,3178.2,3175.4,0.15758]
[1768319733741,0.00353397,3176.8,3175.4,0.15758]
[1768319734049,0.00353397,3176.8,3175.9,1.55637945]
[1768319734254,0.13765327,3177.6,3175.7,0.15757]
[1768319734549,1.55637945,3177.9,3174.4,0.00407381]
[1768319734550,0.13765327,3177.0,3174.4,1.56045326]
[1768319734849,0.13765327,3177.0,3175.5,0.15758]
[1768319735347,0.14514426,3177.9,3175.6,1.55637945]
[1768319735537,0.14514426,3177.1,3175.1,0.15759]
[1768319735747,0.14514426,3176.8,3175.1,0.15759]
[1768319735951,1.70152371,3176.8,3175.1,0.15759]
[1768319736145,0.14514426,3176.3,3175.1,0.15759]
[1768319736342,0.00382884,3177.9,3175.1,0.15759]
[1768319736343,0.14514426,3176.7,3175.1,0.15759]
[1768319736745,0.14514426,3176.3,3174.4,0.00407381]
[1768319737145,0.14514426,3176.0,3174.4,0.00407381]
[1768319737945,6.14514426,3176.0,3174.4,0.00407381]
[1768319738149,0.14514426,3175.9,3174.4,0.00407381]
[1768319740161,0.14514426,3175.8,3174.4,0.00407381]
[1768319740558,0.14514426,3175.6,3173.3,0.15769]
[1768319740960,0.14514426,3175.2,3173.3,0.15769]
[1768319741161,0.14514426,3175.2,3172.4,0.12169658]
[1768319741458,0.14514426,3174.7,3172.4,0.00239673]
[1768319741656,0.14514426,3174.7,3172.4,0.16012673]
[1768319741963,0.14514426,3174.7,3172.6,0.15772]
[1768319742262,0.14514426,3174.6,3172.6,0.15772]
[1768319742451,0.14514426,3174.6,3172.4,0.00239673]
[1768319742655,0.14514426,3174.6,3173.2,0.15769]
[1768319743063,0.14869742,3175.2,3173.4,0.15768]
[1768319743464,0.14514426,3175.1,3173.4,0.15768]
[1768319743665,0.14514426,3175.1,3173.5,0.15768]
[1768319745772,0.14514426,3175.1,3172.6,0.13719759]
[1768319745976,0.14514426,3175.1,3173.5,0.15767]
[1768319747875,0.14514426,3174.8,3172.4,0.00239673]
[1768319748073,3.174,3176.5,3174.7,0.1438501]
[1768319748270,1.98660837,3177.2,3174.8,3.154]
[1768319748469,1.98660837,3177.2,3175.1,0.15759]
[1768319748769,1.98660837,3177.2,3175.2,0.15759]
[1768319748963,1.98660837,3176.7,3174.6,0.1438501]
[1768319749164,0.00360312,3176.7,3174.7,0.1438501]
[1768319749473,0.00360312,3176.7,3175.1,0.15759]
[1768319750176,0.14874738,3176.7,3175.1,0.15759]
[1768319750379,0.14514426,3176.6,3175.1,0.15759]
[1768319750669,0.14514426,3176.6,3174.6,0.00386206]
[1768319751276,0.14514426,3176.6,3175.0,0.1576]
[1768319752872,0.14514426,3176.6,3174.6,0.00386206]
[1768319752873,6.14514426,3176.6,3174.6,0.00386206]
[1768319753078,0.14514426,3176.1,3174.6,0.00386206]
[1768319753880,0.14514426,3176.0,3174.6,0.00386206]
[1768319755575,0.00360312,3176.7,3174.6,0.14771216]
[1768319755778,0.00360312,3176.7,3175.3,0.1438501]
[1768319756075,0.14514426,3178.0,3176.1,0.15755]
[1768319756380,0.14514426,3178.0,3176.3,0.15753]
[1768319756968,0.14906223,3178.0,3176.3,0.15753]
[1768319757474,1.54794411,3177.6,3176.3,0.15753]
[1768319757681,1.69308837,3177.6,3176.3,0.15753]
[1768319757876,1.54794411,3177.2,3175.5,0.1438501]
[1768319758073,0.00391797,3178.0,3175.5,0.1438501]
[1768319758374,1.55186208,3178.0,3175.7,0.1438501]
[1768319758871,1.54794411,3176.3,3175.2,0.15759]
[1768319759174,0.14514426,3176.9,3175.3,0.15759]
[1768319759982,0.14514426,3176.9,3174.7,0.15761]
[1768319760175,4.716,3177.5,3175.6,0.15757]
[1768319760372,0.15746,3177.9,3175.9,0.15756]
[1768319760373,0.14514426,3177.6,3175.9,0.15756]
[1768319760576,0.00391797,3178.0,3175.7,0.1438501]
[1768319760772,0.14514426,3179.9,3177.0,0.1438501]
[1768319761074,0.14514426,3179.9,3175.4,3.152]
[1768319761075,0.14514426,3180.4,3177.7,0.1438501]
[1768319761277,0.14514426,3179.8,3177.5,0.15748]
[1768319761587,0.14514426,3179.8,3175.9,3.152]
[1768319761588,0.14514426,3179.2,3176.6,0.15752]
[1768319761773,0.14901203,3179.2,3177.0,0.1575]
[1768319761971,0.00386777,3179.2,3177.8,0.15746]
[1768319762176,0.00386777,3179.2,3178.0,0.15745]
[1768319762579,0.00386777,3179.2,3177.8,0.1438501]
[1768319762778,0.00386777,3179.2,3177.9,0.1438501]
[1768319762979,0.00386777,3179.2,3178.2,0.15744]
[1768319763175,3.152,3180.8,3177.9,0.1438501]
[1768319763176,0.14514426,3180.8,3177.9,0.1438501]
[1768319763484,3.152,3180.7,3178.3,0.15743]
[1768319763783,1.39531,3180.9,3178.3,0.15743]
[1768319763784,4.714,3180.6,3178.3,0.15743]
[1768319763985,0.25962259,3180.9,3178.3,0.15743]
[1768319764278,0.15732,3180.7,3177.4,0.1438501]
[1768319764475,3.151,3180.8,3177.6,0.15747]
[1768319764672,0.15734,3180.4,3177.6,0.15747]
[1768319764871,9.151,3180.8,3177.6,0.15747]
[1768319765076,2.37839039,3180.3,3176.7,0.14013222]
[1768319765275,0.14179793,3180.1,3176.7,0.14013222]
[1768319765479,0.14179793,3179.3,3177.0,0.1575]
[1768319765680,0.14179793,3180.3,3177.7,0.14013222]
[1768319766085,0.14510475,3180.9,3178.7,0.15742]
[1768319766278,3.29610475,3180.9,3178.8,0.15741]
[1768319766482,0.14510475,3180.9,3178.4,0.14013222]
[1768319766683,0.14510475,3180.9,3179.1,0.1574]
[1768319766983,0.14510475,3180.9,3179.1,0.00243508]
[1768319767282,0.00169832,3180.9,3179.3,0.15739]
[1768319767679,0.00169832,3180.9,3179.4,0.15738]
[1768319768183,0.00169832,3180.9,3179.2,0.14013222]
[1768319768389,0.00169832,3180.9,3179.7,0.15737]
[1768319769286,0.14349625,3180.9,3179.1,0.15983508]
[1768319769786,0.14179793,3180.7,3178.0,0.14013222]
[1768319769995,0.14179793,3180.7,3178.5,0.15743]
[1768319770184,0.00169832,3180.9,3178.6,0.15742]
[1768319770185,0.14179793,3180.5,3178.6,0.15742]
[1768319770489,4.85379793,3180.5,3178.0,0.14013222]
[1768319770682,1.562,3180.4,3178.0,0.14349866]
[1768319770887,0.00169832,3180.9,3178.5,0.14013222]
[1768319771185,0.14349625,3180.9,3179.3,0.15739]
[1768319771783,4.85379793,3180.8,3179.3,0.15739]
[1768319772087,4.85379793,3180.7,3178.5,0.14013222]
[1768319772281,0.14179793,3180.6,3178.9,0.15741]
[1768319772979,4.712,3180.7,3178.9,0.15741]
[1768319772980,0.14179793,3180.4,3178.9,0.15741]
[1768319773180,4.71,3180.3,3178.9,0.15741]
[1768319773382,0.14179793,3180.2,3178.9,0.15741]
[1768319773582,0.14179793,3180.1,3178.2,0.15744]
[1768319773787,0.14179793,3180.1,3178.0,0.00336644]
[1768319773987,4.71,3180.0,3178.0,0.00336644]
[1768319774286,0.14179793,3179.9,3178.4,0.15743]
[1768319774491,0.14179793,3179.9,3178.0,0.00336644]
[1768319774688,0.14179793,3179.7,3178.0,0.00336644]
[1768319775091,4.85179793,3179.6,3178.0,0.00336644]
[1768319775290,0.14179793,3179.6,3178.0,0.00336644]
[1768319775488,1.563,3179.7,3178.7,0.15742]
[1768319775690,1.563,3179.6,3178.7,0.15742]
[1768319775890,1.563,3179.6,3178.0,0.14349866]
[1768319775891,0.13622291,3179.5,3178.0,0.00336644]
[1768319776087,0.13622291,3179.5,3178.0,0.16081644]
[1768319776390,1.563,3179.4,3178.3,0.15744]
[1768319776790,0.13622291,3180.2,3178.3,0.15744]
[1768319776980,0.15734,3180.4,3178.3,0.15744]
[1768319776981,0.13622291,3180.0,3178.3,0.15744]
[1768319777381,0.13622291,3179.8,3177.5,0.15748]
[1768319777580,0.13622291,3179.4,3177.5,0.15748]
[1768319777784,0.13622291,3179.2,3176.9,0.15751]
[1768319777994,0.13622291,3179.2,3177.1,0.1575]
[1768319778194,0.13622291,3179.0,3177.1,0.1575]
[1768319778385,0.13622291,3179.0,3177.1,0.16048473]
[1768319778896,0.29363291,3178.9,3177.1,0.16048473]
[1768319779195,0.13622291,3178.7,3177.2,0.15749]
[1768319779495,4.623,3178.6,3177.5,0.15748]
[1768319779690,0.00352236,3178.6,3177.5,0.15748]
[1768319779895,4.711,3178.5,3177.5,0.15748]
[1768319780086,4.711,3178.4,3177.5,0.15748]
[1768319780287,0.13974527,3178.6,3177.5,0.15748]
[1768319780600,0.13622291,3178.4,3176.5,0.15753]
[1768319780893,4.712,3178.3,3176.5,0.14208537]
[1768319781194,4.712,3178.3,3177.3,0.15748]
[1768319781381,0.13622291,3178.5,3177.3,0.13573904]
[1768319781582,0.13622291,3178.5,3178.2,0.15744]
[1768319781783,0.604,3179.2,3178.3,0.29317904]
[1768319782196,0.604,3179.2,3178.4,0.00634633]
[1768319782591,0.15734,3180.3,3178.1,0.15745]
[1768319782793,0.15736,3179.9,3177.9,0.13573904]
[1768319782995,4.711,3179.8,3177.9,0.13573904]
[1768319783198,3.174,3179.7,3177.9,0.13573904]
[1768319783592,0.15738,3179.6,3177.3,0.29730525]
[1768319783794,9.174,3179.7,3177.3,0.29730525]
[1768319784398,7.886,3179.6,3177.9,0.15745]
[1768319784599,4.712,3179.5,3177.9,0.13573904]
[1768319785697,13.886,3179.5,3177.5,0.15748]
[1768319785905,7.886,3179.5,3177.6,0.15747]
[1768319786296,7.886,3179.4,3177.7,0.15747]
[1768319786497,4.712,3179.3,3177.7,0.15747]
[1768319786707,7.886,3179.3,3177.7,0.15747]
[1768319786903,0.15741,3178.9,3177.3,0.00408621]
[1768319787298,0.15742,3178.8,3177.3,0.00408621]
[1768319787694,6.15742,3178.7,3176.6,0.13573904]
[1768319788005,4.712,3178.6,3176.6,0.13573904]
[1768319788404,45.512,3178.6,3176.6,0.29325904]
[1768319788607,45.512,3178.6,3176.6,0.29603398]
[1768319788998,40.8,3178.6,3176.6,0.29603398]
[1768319789198,4.714,3178.5,3176.7,0.13573904]
[1768319789404,4.714,3178.4,3176.7,0.13573904]
[1768319789995,40.8,3178.6,3176.7,0.13573904]
[1768319790199,40.8,3178.6,3176.7,0.29325904]
[1768319790409,4.717,3178.5,3176.9,0.13573904]
[1768319790597,0.1574,3179.2,3176.9,0.13573904]
[1768319790802,4.718,3179.1,3176.9,0.13573904]
[1768319791206,40.8,3179.0,3176.9,0.13573904]
[1768319791615,40.8,3179.0,3177.1,0.15749]
[1768319791905,40.8,3179.0,3176.6,0.00277494]
[1768319791906,49.974,3179.0,3176.6,0.00277494]
[1768319792101,0.15742,3178.6,3176.7,0.13573904]
[1768319792709,4.721,3178.5,3176.7,0.13573904]
[1768319793304,0.15742,3178.6,3176.7,0.13573904]
[1768319793506,4.722,3178.5,3176.7,0.13573904]
[1768319794007,0.15742,3178.6,3176.7,0.13573904]
[1768319794216,1.572,3178.4,3176.7,0.13573904]
[1768319794816,1.572,3178.4,3176.6,0.00277494]